fUST/lending_fUST_20250221
["ID","MTS","AMOUNT","RATE_DAILY","PERIOD"]
[353894946,1740117043664,-1146.8,0.00014109,2]
[353894947,1740117043673,-647.37,0.00014109,2]
[353894948,1740117043682,-500.0,0.00014109,2]
[353894950,1740117043692,-500.0,0.00014109,2]
[353894951,1740117043701,-1094.39,0.00014109,2]
[353894954,1740117043710,-1858.53,0.00014109,2]
[353894956,1740117043719,-610.42,0.00014109,2]
[353894957,1740117043729,-500.0,0.00014109,2]
[353894958,1740117043738,-15893.71,0.00014109,2]
[353894959,1740117043748,-500.0,0.00014109,2]
[353894960,1740117043758,-500.0,0.00014109,2]
[353894961,1740117043767,-828.8,0.00014109,2]
[353894962,1740117043777,-1087.4,0.00014109,2]
[353894963,1740117043786,-559.84,0.00014109,2]
[353894964,1740117043796,-500.0,0.00014109,2]
[353894965,1740117043805,-679.04,0.00014109,2]
[353894966,1740117043815,-1681.39,0.00014109,2]
[353894967,1740117043824,-568.78,0.00014109,2]
[353894968,1740117043833,-3245.48,0.00014109,2]
[353894969,1740117043843,-500.0,0.00014109,2]
[353894970,1740117043852,-7414.0,0.00014109,2]
[353894971,1740117043862,-881.69,0.00014109,2]
[353894972,1740117043871,-500.0,0.00014109,2]
[353894973,1740117043880,-1674.8,0.00014109,2]
[353894974,1740117043890,-1125.57,0.00014109,2]
[353894975,1740117043899,-1837.49,0.00014109,2]
[353894976,1740117043908,-529.29,0.00014109,2]
[353894977,1740117043917,-500.0,0.00014109,2]
[353894978,1740117043927,-907.48,0.00014109,2]
[353894979,1740117043936,-604.66,0.00014109,2]
[353894980,1740117043946,-500.0,0.00014109,2]
[353894981,1740117043955,-636.34537082,0.00014109,2]
[353894982,1740117043965,-1373.67,0.00014109,2]
[353894983,1740117043974,-500.0,0.00014109,2]
[353894984,1740117043983,-500.0,0.00014109,2]
[353894985,1740117043993,-962.46,0.00014109,2]
[353894986,1740117044002,-500.0,0.00014109,2]
[353894987,1740117044012,-822.03,0.00014109,2]
[353894988,1740117044021,-500.0,0.00014109,2]
[353894989,1740117044030,-2871.79,0.00014109,2]
[353894990,1740117044040,-500.0,0.00014109,2]
[353894991,1740117044049,-915.56,0.00014109,2]
[353894992,1740117044059,-500.0,0.00014109,2]
[353894993,1740117044068,-600.0,0.00014164,2]
[353894994,1740117044077,-713.2550942,0.00014164,2]
[353894995,1740117044087,-500.0,0.00014173,2]
[353894996,1740117044096,-500.43396858,0.00014173,2]
[353894997,1740117044106,-500.27639315,0.00014173,2]
[353894998,1740117044116,-500.0,0.00014173,2]
[353894999,1740117044125,-500.0,0.00014173,2]
[353895000,1740117044134,-519.05548856,0.00014173,2]
[353895001,1740117044144,-502.47630544,0.00014173,2]
[353895002,1740117044153,-597.46128311,0.00014173,2]
[353895003,1740117044163,-501.15348366,0.00014173,2]
[353895004,1740117044173,-500.0,0.00014173,2]
[353895005,1740117044183,-501.18809879,0.00014173,2]
[353895006,1740117044192,-500.0,0.00014173,2]
[353895007,1740117044201,-500.0,0.00014173,2]
[353895008,1740117044211,-500.0,0.00014191,2]
[353895009,1740117044220,-500.0,0.00014191,2]
[353895010,1740117044229,-500.0,0.00014191,2]
[353895011,1740117044239,-500.0,0.00014191,2]
[353895012,1740117044248,-500.0,0.00014191,2]
[353895013,1740117044258,-500.0,0.00014191,2]
[353895014,1740117044268,-500.0,0.00014191,2]
[353895015,1740117044280,-500.0,0.00014191,2]
[353895016,1740117044290,-500.0,0.00014191,2]
[353895017,1740117044299,-500.0,0.00014191,2]
[353895018,1740117044310,-500.0,0.00014191,2]
[353895019,1740117044319,-500.0,0.00014191,2]
[353895020,1740117044328,-564.43,0.00014191,2]
[353895021,1740117044339,-500.0,0.00014191,2]
[353895022,1740117044350,-500.0,0.00014191,2]
[353895023,1740117044360,-500.0,0.00014191,2]
[353895024,1740117044369,-533.17,0.00014191,2]
[353895025,1740117044379,-500.0,0.00014191,2]
[353895026,1740117044388,-500.0,0.00014191,2]
[353895027,1740117044397,-500.0,0.00014191,2]
[353895028,1740117044407,-500.0,0.00014191,2]
[353895029,1740117044415,-500.0,0.00014191,2]
[353895030,1740117044424,-500.0,0.00014191,2]
[353895031,1740117044434,-1090.82,0.00014191,2]
[353895032,1740117044443,-7612.34,0.00014191,2]
[353895033,1740117044452,-3679.13,0.00014191,2]
[353895034,1740117044461,-1146.8,0.00014191,2]
[353895035,1740117044471,-647.37,0.00014191,2]
[353895036,1740117044479,-500.0,0.00014191,2]
[353895037,1740117044488,-500.0,0.00014191,2]
[353895038,1740117044498,-1094.39,0.00014191,2]
[353895039,1740117044507,-1858.53,0.00014191,2]
[353895040,1740117044517,-610.42,0.00014191,2]
[353895041,1740117044529,-500.0,0.00014191,2]
[353895042,1740117044543,-15893.71,0.00014191,2]
[353895043,1740117044554,-500.0,0.00014191,2]
[353895044,1740117044562,-500.0,0.00014191,2]
[353895045,1740117044576,-828.8,0.00014191,2]
[353895046,1740117044585,-1087.4,0.00014191,2]
[353895047,1740117044594,-559.84,0.00014191,2]
[353895048,1740117044604,-500.0,0.00014191,2]
[353895049,1740117044614,-679.04,0.00014191,2]
[353895050,1740117044624,-1681.39,0.00014191,2]
[353895051,1740117044633,-568.78,0.00014191,2]
[353895052,1740117044643,-3245.48,0.00014191,2]
[353895053,1740117044652,-500.0,0.00014191,2]
[353895054,1740117044662,-7414.0,0.00014191,2]
[353895055,1740117044771,-881.69,0.00014191,2]
[353895056,1740117044780,-500.0,0.00014191,2]
[353895057,1740117044791,-1674.8,0.00014191,2]
[353895058,1740117044800,-1125.57,0.00014191,2]
[353895059,1740117044810,-1837.49,0.00014191,2]
[353895060,1740117044819,-529.29,0.00014191,2]
[353895061,1740117044829,-500.0,0.00014191,2]
[353895062,1740117044838,-907.48,0.00014191,2]
[353895063,1740117044848,-604.66,0.00014191,2]
[353895064,1740117044858,-500.0,0.00014191,2]
[353895065,1740117044867,-1373.67,0.00014191,2]
[353895066,1740117044877,-500.0,0.00014191,2]
[353895067,1740117044886,-500.0,0.00014191,2]
[353895068,1740117044896,-962.46,0.00014191,2]
[353895069,1740117044905,-500.0,0.00014191,2]
[353895070,1740117044915,-822.03,0.00014191,2]
[353895071,1740117044925,-500.0,0.00014191,2]
[353895072,1740117044935,-2871.79,0.00014191,2]
[353895073,1740117044944,-500.0,0.00014191,2]
[353895074,1740117044954,-915.56,0.00014191,2]
[353895075,1740117044962,-500.0,0.00014191,2]
[353895076,1740117044972,-500.0,0.000142,2]
[353895077,1740117044982,-151.0,0.000142,2]
[353895078,1740117044992,-160.0,0.0001421,3]
[353895079,1740117045002,-166.321007,0.0001421,5]
[353895080,1740117045012,-500.0,0.00014273,2]
[353895081,1740117045021,-500.0,0.00014273,2]
[353895082,1740117045031,-500.0,0.00014273,2]
[353895083,1740117045041,-500.0,0.00014273,2]
[353895084,1740117045051,-500.0,0.00014273,2]
[353895085,1740117045061,-500.0,0.00014273,2]
[353895086,1740117045070,-500.0,0.00014273,2]
[353895087,1740117045080,-500.0,0.00014273,2]
[353895088,1740117045089,-500.0,0.00014273,2]
[353895089,1740117045098,-500.0,0.00014273,2]
[353895090,1740117045109,-500.0,0.00014273,2]
[353895091,1740117045120,-500.0,0.00014273,2]
[353895092,1740117045130,-564.43,0.00014273,2]
[353895093,1740117045140,-500.0,0.00014273,2]
[353895094,1740117045149,-500.0,0.00014273,2]
[353895095,1740117045159,-500.0,0.00014273,2]
[353895096,1740117045168,-533.17,0.00014273,2]
[353895097,1740117045178,-500.0,0.00014273,2]
[353895098,1740117045187,-500.0,0.00014273,2]
[353895099,1740117045196,-500.0,0.00014273,2]
[353895100,1740117045205,-500.0,0.00014273,2]
[353895101,1740117045215,-500.0,0.00014273,2]
[353895102,1740117045225,-500.0,0.00014273,2]
[353895103,1740117045235,-1090.82,0.00014273,2]
[353895104,1740117045244,-7612.34,0.00014273,2]
[353895105,1740117045254,-3679.13,0.00014273,2]
[353895106,1740117045264,-1146.8,0.00014273,2]
[353895107,1740117045274,-647.37,0.00014273,2]
[353895108,1740117045283,-500.0,0.00014273,2]
[353895109,1740117045292,-500.0,0.00014273,2]
[353895110,1740117045302,-1094.39,0.00014273,2]
[353895111,1740117045312,-1858.53,0.00014273,2]
[353895112,1740117045321,-610.42,0.00014273,2]
[353895113,1740117045330,-500.0,0.00014273,2]
[353895114,1740117045340,-15893.71,0.00014273,2]
[353895115,1740117045349,-500.0,0.00014273,2]
[353895116,1740117045359,-500.0,0.00014273,2]
[353895117,1740117045368,-828.8,0.00014273,2]
[353895118,1740117045378,-1087.4,0.00014273,2]
[353895119,1740117045387,-559.84,0.00014273,2]
[353895120,1740117045396,-500.0,0.00014273,2]
[353895121,1740117045406,-679.04,0.00014273,2]
[353895122,1740117045415,-1681.39,0.00014273,2]
[353895123,1740117045424,-568.78,0.00014273,2]
[353895124,1740117045435,-3245.48,0.00014273,2]
[353895125,1740117045444,-500.0,0.00014273,2]
[353895126,1740117045453,-7414.0,0.00014273,2]
[353895127,1740117045462,-881.69,0.00014273,2]
[353895128,1740117045471,-500.0,0.00014273,2]
[353895129,1740117045480,-1674.8,0.00014273,2]
[353895130,1740117045489,-1125.57,0.00014273,2]
[353895131,1740117045499,-1837.49,0.00014273,2]
[353895132,1740117045508,-529.29,0.00014273,2]
[353895133,1740117045517,-500.0,0.00014273,2]
[353895134,1740117045526,-907.48,0.00014273,2]
[353895135,1740117045539,-604.66,0.00014273,2]
[353895136,1740117045552,-500.0,0.00014273,2]
[353895137,1740117045561,-1373.67,0.00014273,2]
[353895138,1740117045570,-500.0,0.00014273,2]
[353895139,1740117045579,-500.0,0.00014273,2]
[353895140,1740117045588,-962.46,0.00014273,2]
[353895141,1740117045598,-500.0,0.00014273,2]
[353895142,1740117045608,-822.03,0.00014273,2]
[353895143,1740117045617,-500.0,0.00014273,2]
[353895144,1740117045627,-2871.79,0.00014273,2]
[353895145,1740117045636,-500.0,0.00014273,2]
[353895146,1740117045645,-915.56,0.00014273,2]
[353895147,1740117045654,-500.0,0.00014273,2]
[353895148,1740117045664,-7438.69753278,0.00014297,2]
[353895149,1740117045673,-151.0,0.000143,2]
[353895150,1740117045682,-670.159,0.00014327,2]
[353895151,1740117045691,-500.0,0.00014356,2]
[353895152,1740117045700,-500.0,0.00014356,2]
[353895153,1740117045709,-500.0,0.00014356,2]
[353895154,1740117045718,-500.0,0.00014356,2]
[353895155,1740117045727,-500.0,0.00014356,2]
[353895156,1740117045736,-500.0,0.00014356,2]
[353895157,1740117045745,-500.0,0.00014356,2]
[353895158,1740117045754,-500.0,0.00014356,2]
[353895159,1740117045763,-500.0,0.00014356,2]
[353895160,1740117045772,-500.0,0.00014356,2]
[353895161,1740117045782,-564.43,0.00014356,2]
[353895162,1740117045791,-500.0,0.00014356,2]
[353895163,1740117045800,-500.0,0.00014356,2]
[353895164,1740117045809,-500.0,0.00014356,2]
[353895165,1740117045819,-533.17,0.00014356,2]
[353895166,1740117045828,-500.0,0.00014356,2]
[353895167,1740117045837,-500.0,0.00014356,2]
[353895168,1740117045847,-500.0,0.00014356,2]
[353895169,1740117045856,-500.0,0.00014356,2]
[353895170,1740117045865,-500.0,0.00014356,2]
[353895171,1740117045874,-349.0215852,0.00014356,2]
[353895172,1740117045883,-1090.82,0.00014356,2]
[353895173,1740117045892,-7612.34,0.00014356,2]
[353895174,1740117045901,-3679.13,0.00014356,2]
[353895175,1740117045910,-1146.8,0.00014356,2]
[353895176,1740117045919,-647.37,0.00014356,2]
[353895177,1740117045928,-500.0,0.00014356,2]
[353895178,1740117045937,-500.0,0.00014356,2]
[353895179,1740117045946,-1094.39,0.00014356,2]
[353895181,1740117045956,-1858.53,0.00014356,2]
[353895182,1740117045964,-610.42,0.00014356,2]
[353895183,1740117045973,-500.0,0.00014356,2]
[353895184,1740117045982,-15893.71,0.00014356,2]
[353895185,1740117045992,-500.0,0.00014356,2]
[353895186,1740117046001,-500.0,0.00014356,2]
[353895187,1740117046010,-828.8,0.00014356,2]
[353895189,1740117046019,-1087.4,0.00014356,2]
[353895190,1740117046028,-559.84,0.00014356,2]
[353895191,1740117046037,-500.0,0.00014356,2]
[353895192,1740117046046,-679.04,0.00014356,2]
[353895193,1740117046055,-1681.39,0.00014356,2]
[353895194,1740117046064,-568.78,0.00014356,2]
[353895195,1740117046074,-3245.48,0.00014356,2]
[353895196,1740117046083,-500.0,0.00014356,2]
[353895197,1740117046092,-7414.0,0.00014356,2]
[353895199,1740117046101,-881.69,0.00014356,2]
[353895200,1740117046111,-500.0,0.00014356,2]
[353895201,1740117046120,-1674.8,0.00014356,2]
[353895202,1740117046129,-1125.57,0.00014356,2]
[353895203,1740117046138,-1837.49,0.00014356,2]
[353895204,1740117046147,-529.29,0.00014356,2]
[353895205,1740117046156,-500.0,0.00014356,2]
[353895206,1740117046166,-907.48,0.00014356,2]
[353895207,1740117046175,-604.66,0.00014356,2]
[353895208,1740117046184,-500.0,0.00014356,2]
[353895209,1740117046193,-1373.67,0.00014356,2]
[353895210,1740117046202,-500.0,0.00014356,2]
[353895211,1740117046211,-500.0,0.00014356,2]
[353895212,1740117046222,-962.46,0.00014356,2]
[353895213,1740117046232,-822.03,0.00014356,2]
[353895214,1740117046241,-2871.79,0.00014356,2]
[353895215,1740117046250,-500.0,0.00014356,2]
[353895216,1740117046260,-915.56,0.00014356,2]
[353895217,1740117046269,-500.0,0.00014356,2]
[353895218,1740117046279,-151.0,0.000144,2]
[353895219,1740117046291,-151.0,0.000144,2]
[353895220,1740117046301,-500.0,0.00014424,7]
[353895221,1740117046311,-500.0,0.00014424,7]
[353895222,1740117046321,-500.0,0.00014424,7]
[353895223,1740117046331,-500.0,0.00014424,7]
[353895224,1740117046340,-500.0,0.00014424,7]
[353895225,1740117046351,-500.0,0.00014424,7]
[353895226,1740117046362,-500.0,0.00014424,7]
[353895227,1740117046370,-500.0,0.00014424,7]
[353895228,1740117046379,-500.0,0.00014424,7]
[353895229,1740117046388,-639.03,0.00014424,7]
[353895230,1740117046398,-500.0,0.00014438,2]
[353895232,1740117046407,-500.0,0.00014438,2]
[353895233,1740117046415,-500.0,0.00014438,2]
[353895235,1740117046424,-500.0,0.00014438,2]
[353895237,1740117046433,-500.0,0.00014438,2]
[353895239,1740117046442,-344.4147945,0.00014438,2]
[353895241,1740117046451,-500.0,0.00014438,2]
[353895243,1740117046462,-500.0,0.00014438,2]
[353895245,1740117046473,-500.0,0.00014438,2]
[353895247,1740117046483,-500.0,0.00014438,2]
[353895249,1740117046492,-564.43,0.00014438,2]
[353895251,1740117046502,-500.0,0.00014438,2]
[353895254,1740117046511,-500.0,0.00014438,2]
[353895256,1740117046520,-559.23830574,0.00014438,2]
[353895258,1740117046533,-533.17,0.00014438,2]
[353895260,1740117046543,-500.0,0.00014438,2]
[353895261,1740117046551,-500.0,0.00014438,2]
[353895263,1740117046561,-500.0,0.00014438,2]
[353895265,1740117046571,-500.0,0.00014438,2]
[353895268,1740117046580,-500.0,0.00014438,2]
[353895269,1740117046589,-1090.82,0.00014438,2]
[353895271,1740117046598,-7612.34,0.00014438,2]
[353895274,1740117046608,-3679.13,0.00014438,2]
[353895276,1740117046618,-1146.8,0.00014438,2]
[353895278,1740117046627,-647.37,0.00014438,2]
[353895280,1740117046636,-500.0,0.00014438,2]
[353895282,1740117046645,-500.0,0.00014438,2]
[353895284,1740117046654,-1094.39,0.00014438,2]
[353895286,1740117046663,-1858.53,0.00014438,2]
[353895288,1740117046672,-610.42,0.00014438,2]
[353895290,1740117046681,-15893.71,0.00014438,2]
[353895292,1740117046690,-500.0,0.00014438,2]
[353895294,1740117046700,-500.0,0.00014438,2]
[353895296,1740117046710,-828.8,0.00014438,2]
[353895298,1740117046719,-1087.4,0.00014438,2]
[353895300,1740117046728,-559.84,0.00014438,2]
[353895302,1740117046738,-505.55158828,0.00014438,2]
[353895304,1740117046747,-679.04,0.00014438,2]
[353895306,1740117046756,-1681.39,0.00014438,2]
[353895308,1740117046765,-568.78,0.00014438,2]
[353895310,1740117046774,-3245.48,0.00014438,2]
[353895312,1740117046783,-500.0,0.00014438,2]
[353895314,1740117046792,-7414.0,0.00014438,2]
[353895316,1740117046801,-881.69,0.00014438,2]
[353895318,1740117046810,-500.0,0.00014438,2]
[353895320,1740117046819,-1674.8,0.00014438,2]
[353895322,1740117046828,-1125.57,0.00014438,2]
[353895324,1740117046837,-1837.49,0.00014438,2]
[353895326,1740117046846,-529.29,0.00014438,2]
[353895328,1740117046855,-500.0,0.00014438,2]
[353895330,1740117046864,-907.48,0.00014438,2]
[353895332,1740117046872,-604.66,0.00014438,2]
[353895334,1740117046882,-500.0,0.00014438,2]
[353895336,1740117046891,-1373.67,0.00014438,2]
[353895338,1740117046900,-500.0,0.00014438,2]
[353895339,1740117046909,-500.0,0.00014438,2]
[353895341,1740117046918,-962.46,0.00014438,2]
[353895343,1740117046927,-822.03,0.00014438,2]
[353895346,1740117046937,-2871.79,0.00014438,2]
[353895348,1740117046947,-500.0,0.00014438,2]
[353895349,1740117046956,-915.56,0.00014438,2]
[353895352,1740117046965,-358.85536298,0.00014438,2]
[353895354,1740117046975,-151.0,0.000145,2]
[353895356,1740117046987,-203.08957342,0.00014502,2]
[353895358,1740117046996,-203.08,0.00014502,2]
[353895360,1740117047005,-280.23128327,0.00014502,2]
[353895362,1740117047014,-280.23128327,0.00014502,2]
[353895364,1740117047023,-280.23128327,0.00014502,2]
[353895366,1740117047033,-280.23128327,0.00014502,2]
[353895368,1740117047042,-280.23128327,0.00014502,2]
[353895370,1740117047051,-280.23128327,0.00014502,2]
[353895372,1740117047060,-280.23128327,0.00014502,2]
[353895374,1740117047069,-280.23128327,0.00014502,2]
[353895376,1740117047080,-280.23128327,0.00014502,2]
[353895378,1740117047089,-280.23128327,0.00014502,2]
[353895380,1740117047098,-280.23128327,0.00014502,2]
[353895382,1740117047110,-280.23128327,0.00014502,2]
[353895384,1740117047120,-280.23128327,0.00014502,2]
[353895386,1740117047129,-280.23128327,0.00014502,2]
[353895388,1740117047138,-280.23128327,0.00014502,2]
[353895390,1740117047148,-280.23128327,0.00014502,2]
[353895392,1740117047157,-280.23128327,0.00014502,2]
[353895394,1740117047166,-280.23128327,0.00014502,2]
[353895396,1740117047175,-280.23128327,0.00014502,2]
[353895398,1740117047184,-280.23,0.00014502,2]
[353895410,1740117047193,-370.84185264,0.00014502,2]
[353895412,1740117047294,-370.84185264,0.00014502,2]
[353895414,1740117047304,-370.84185264,0.00014502,2]
[353895416,1740117047313,-370.84185264,0.00014502,2]
[353895418,1740117047322,-370.84185264,0.00014502,2]
[353895420,1740117047331,-370.84185264,0.00014502,2]
[353895422,1740117047340,-370.84185264,0.00014502,2]
[353895424,1740117047349,-370.84185264,0.00014502,2]
[353895426,1740117047358,-370.84185264,0.00014502,2]
[353895428,1740117047367,-370.84185264,0.00014502,2]
[353895430,1740117047376,-370.84185264,0.00014502,2]
[353895432,1740117047385,-370.84185264,0.00014502,2]
[353895434,1740117047395,-370.84185264,0.00014502,2]
[353895436,1740117047404,-370.84185264,0.00014502,2]
[353895439,1740117047415,-370.84185264,0.00014502,2]
[353895441,1740117047425,-370.84185264,0.00014502,2]
[353895443,1740117047434,-370.84185264,0.00014502,2]
[353895445,1740117047443,-370.84185264,0.00014502,2]
[353895447,1740117047452,-370.84185264,0.00014502,2]
[353895449,1740117047462,-370.84,0.00014502,2]
[353895451,1740117047471,-2926.33189115,0.00014502,2]
[353895453,1740117047479,-500.0,0.0001452,2]
[353895455,1740117047488,-500.0,0.0001452,2]
[353895457,1740117047497,-500.0,0.0001452,2]
[353895459,1740117047506,-500.0,0.0001452,2]
[353895461,1740117047515,-500.0,0.0001452,2]
[353895463,1740117047524,-500.0,0.0001452,2]
[353895465,1740117047537,-500.0,0.0001452,2]
[353895467,1740117047546,-500.0,0.0001452,2]
[353895469,1740117047555,-564.43,0.0001452,2]
[353895471,1740117047564,-500.0,0.0001452,2]
[353895473,1740117047573,-533.17,0.0001452,2]
[353895475,1740117047582,-500.0,0.0001452,2]
[353895477,1740117047591,-500.0,0.0001452,2]
[353895479,1740117047601,-500.0,0.0001452,2]
[353895481,1740117047610,-441.20485915,0.0001452,2]
[353895483,1740117047619,-500.0,0.0001452,2]
[353895485,1740117047628,-1090.82,0.0001452,2]
[353895487,1740117047638,-7612.34,0.0001452,2]
[353895489,1740117047648,-3679.13,0.0001452,2]
[353895491,1740117047657,-1146.8,0.0001452,2]
[353895493,1740117047667,-647.37,0.0001452,2]
[353895495,1740117047676,-500.0,0.0001452,2]
[353895497,1740117047685,-1094.39,0.0001452,2]
[353895499,1740117047694,-1858.53,0.0001452,2]
[353895501,1740117047703,-610.42,0.0001452,2]
[353895503,1740117047713,-15893.71,0.0001452,2]
[353895505,1740117047722,-500.0,0.0001452,2]
[353895507,1740117047731,-500.0,0.0001452,2]
[353895509,1740117047740,-828.8,0.0001452,2]
[353895511,1740117047749,-1087.4,0.0001452,2]
[353895513,1740117047758,-559.84,0.0001452,2]
[353895515,1740117047767,-679.04,0.0001452,2]
[353895517,1740117047776,-568.78,0.0001452,2]
[353895519,1740117047786,-1681.39,0.0001452,2]
[353895521,1740117047795,-3245.48,0.0001452,2]
[353895523,1740117047804,-185.663375,0.0001452,2]
[353895525,1740117047813,-7414.0,0.0001452,2]
[353895527,1740117047822,-881.69,0.0001452,2]
[353895529,1740117047831,-500.0,0.0001452,2]
[353895531,1740117047840,-1674.8,0.0001452,2]
[353895533,1740117047849,-1125.57,0.0001452,2]
[353895535,1740117047859,-1837.49,0.0001452,2]
[353895537,1740117047868,-529.29,0.0001452,2]
[353895539,1740117047877,-317.31127923,0.0001452,2]
[353895541,1740117047886,-907.48,0.0001452,2]
[353895543,1740117047896,-604.66,0.0001452,2]
[353895545,1740117047905,-500.0,0.0001452,2]
[353895547,1740117047914,-1373.67,0.0001452,2]
[353895549,1740117047923,-500.0,0.0001452,2]
[353895551,1740117047932,-500.0,0.0001452,2]
[353895553,1740117047942,-962.46,0.0001452,2]
[353895555,1740117047951,-822.03,0.0001452,2]
[353895558,1740117047961,-2871.79,0.0001452,2]
[353895560,1740117047970,-500.0,0.0001452,2]
[353895562,1740117047979,-915.56,0.0001452,2]
[353895564,1740117047988,-11842.4323202,0.00014527,2]
[353895566,1740117047997,-1002.98575084,0.00014569,2]
[353895568,1740117048006,-151.0,0.000146,2]
[353895570,1740117048015,-151.0,0.000146,2]
[353895572,1740117048024,-500.0,0.00014602,2]
[353895574,1740117048033,-185.64164412,0.00014602,2]
[353895576,1740117048042,-500.0,0.00014602,2]
[353895578,1740117048052,-500.0,0.00014602,2]
[353895580,1740117048061,-500.0,0.00014602,2]
[353895582,1740117048070,-500.0,0.00014602,2]
[353895584,1740117048080,-464.68147116,0.00014602,2]
[353895586,1740117048089,-500.0,0.00014602,2]
[353895588,1740117048098,-564.43,0.00014602,2]
[353895590,1740117048108,-500.0,0.00014602,2]
[353895592,1740117048117,-533.17,0.00014602,2]
[353895594,1740117048127,-500.0,0.00014602,2]
[353895596,1740117048136,-500.0,0.00014602,2]
[353895598,1740117048146,-500.0,0.00014602,2]
[353895600,1740117048155,-500.0,0.00014602,2]
[353895602,1740117048167,-1090.82,0.00014602,2]
[353895604,1740117048177,-3679.13,0.00014602,2]
[353895606,1740117048186,-7612.34,0.00014602,2]
[353895608,1740117048196,-1146.8,0.00014602,2]
[353895610,1740117048206,-647.37,0.00014602,2]
[353895612,1740117048215,-500.0,0.00014602,2]
[353895614,1740117048224,-1094.39,0.00014602,2]
[353895616,1740117048233,-1858.53,0.00014602,2]
[353895618,1740117048242,-610.42,0.00014602,2]
[353895620,1740117048252,-15893.71,0.00014602,2]
[353895622,1740117048261,-500.0,0.00014602,2]
[353895624,1740117048270,-500.0,0.00014602,2]
[353895626,1740117048279,-828.8,0.00014602,2]
[353895628,1740117048288,-1087.4,0.00014602,2]
[353895630,1740117048298,-559.84,0.00014602,2]
[353895632,1740117048307,-679.04,0.00014602,2]
[353895634,1740117048316,-568.78,0.00014602,2]
[353895636,1740117048325,-1681.39,0.00014602,2]
[353895638,1740117048335,-3245.48,0.00014602,2]
[353895640,1740117048344,-7414.0,0.00014602,2]
[353895642,1740117048352,-881.69,0.00014602,2]
[353895644,1740117048361,-500.0,0.00014602,2]
[353895646,1740117048371,-1674.8,0.00014602,2]
[353895648,1740117048380,-1125.57,0.00014602,2]
[353895650,1740117048389,-1837.49,0.00014602,2]
[353895652,1740117048399,-529.29,0.00014602,2]
[353895654,1740117048409,-907.48,0.00014602,2]
[353895656,1740117048418,-604.66,0.00014602,2]
[353895658,1740117048428,-500.0,0.00014602,2]
[353895660,1740117048437,-1373.67,0.00014602,2]
[353895662,1740117048447,-500.0,0.00014602,2]
[353895664,1740117048456,-634.06269794,0.00014602,2]
[353895666,1740117048465,-962.46,0.00014602,2]
[353895669,1740117048475,-822.03,0.00014602,2]
[353895671,1740117048484,-2871.79,0.00014602,2]
[353895673,1740117048493,-500.0,0.00014602,2]
[353895675,1740117048503,-915.56,0.00014602,2]
[353895677,1740117048512,-1000.0,0.00014604,2]
[353895679,1740117048521,-510.21662981,0.00014641,2]
[353895681,1740117048532,-500.96222818,0.00014641,2]
[353895682,1740117048541,-500.0,0.00014684,2]
[353895685,1740117048550,-500.0,0.00014684,2]
[353895687,1740117048560,-500.0,0.00014684,2]